bitfinex/quotes_SOLUSD_20241022
["timestamp","ask_amount","ask_price","bid_price","bid_amount"]
[1729570503878,20.0,166.83,166.74,6.25670974]
[1729570503879,5.9952,166.8,166.74,0.1]
[1729570504193,29.772484,166.79,166.75,11.18530277]
[1729570505681,29.772484,166.79,166.75,17.74960277]
[1729570506806,23.776884,166.82,166.76,0.1]
[1729570507098,5.9952,166.8,166.76,0.1]
[1729570508394,23.776884,166.8,166.76,0.1]
[1729570508997,5.9948,166.81,166.77,0.1]
[1729570511599,5.9948,166.81,166.75,17.74960277]
[1729570511799,29.772184,166.8,166.75,17.74960277]
[1729570512298,29.772184,166.8,166.76,0.1]
[1729570512986,29.772184,166.8,166.75,17.74960277]
[1729570514384,29.772184,166.8,166.76,0.1]
[1729570515296,5.9941,166.83,166.79,0.1]
[1729570515503,5.994,166.84,166.79,0.1]
[1729570515995,5.9942,166.83,166.79,0.1]
[1729570520401,5.9942,166.83,166.79,11.18530277]
[1729570528280,23.776884,166.84,166.8,0.1]
[1729570528589,29.770584,166.84,166.81,11.08530277]
[1729570533019,5.9927,166.87,166.83,0.1]
[1729570533195,5.9927,166.87,166.83,11.18530277]
[1729570533394,5.9927,166.87,166.83,11.08530277]
[1729570534597,5.9927,166.87,166.83,11.18530277]
[1729570537014,5.9936,166.85,166.8,15.201]
[1729570537200,5.9936,166.85,166.81,0.1]
[1729570538495,5.9942,166.83,166.8,11.08530277]
[1729570541298,5.9938,166.84,166.8,11.18530277]
[1729570542104,5.9938,166.84,166.8,11.08530277]
[1729570542504,5.9938,166.84,166.8,11.18530277]
[1729570548427,5.9938,166.84,166.81,0.1]
[1729570550340,5.9943,166.83,166.79,0.1]
[1729570551645,23.776884,166.84,166.76,0.1]
[1729570551821,5.9955,166.8,166.76,0.1]
[1729570562150,5.9962,166.77,166.76,0.1]
[1729570562356,5.9956,166.79,166.76,0.1]
[1729570569356,5.9948,166.81,166.76,0.1]
[1729570569542,23.776884,166.8,166.76,11.18530277]
[1729570570851,29.772084,166.8,166.76,11.18530277]
[1729570571558,43.776884,166.85,166.77,0.1]
[1729570572353,5.9947,166.82,166.77,0.1]
[1729570572543,23.776884,166.81,166.77,0.1]
[1729570573452,23.776884,166.81,166.77,11.18530277]
[1729570574034,29.771684,166.81,166.77,11.18530277]
[1729570574856,14.9828,166.86,166.78,0.1]
[1729570575041,5.9938,166.84,166.79,11.18530277]
[1729570575257,23.776884,166.83,166.79,11.18530277]
[1729570580667,23.776884,166.83,166.81,11.08530277]
[1729570584669,23.776884,166.83,166.79,0.1]
[1729570584856,23.776884,166.83,166.8,11.08530277]
[1729570589659,23.776884,166.83,166.79,0.1]
[1729570589860,23.776884,166.83,166.8,11.08530277]
[1729570593557,23.776884,166.83,166.79,0.1]
[1729570593954,23.776884,166.83,166.8,11.08530277]
[1729570596070,30.7473,166.89,166.82,11.08530277]
[1729570596263,5.9926,166.87,166.82,11.08530277]
[1729570596772,23.776884,166.86,166.82,11.08530277]
[1729570596958,5.9931,166.86,166.82,11.08530277]
[1729570597358,23.776884,166.85,166.82,11.08530277]
[1729570603089,5.9939,166.84,166.79,0.1]
[1729570603383,23.776884,166.83,166.79,11.18530277]
[1729570618599,23.776884,166.83,166.81,11.08530277]
[1729570620795,23.776884,166.85,166.81,11.18530277]
[1729570620974,23.776884,166.85,166.8,0.1]
[1729570621303,23.776884,166.83,166.8,11.08530277]
[1729570622294,23.776884,166.84,166.8,11.08530277]
[1729570622990,23.776884,166.84,166.77,6.35660645]
[1729570623194,23.776884,166.82,166.77,17.34190922]
[1729570624103,23.776884,166.82,166.77,17.44190922]
[1729570626382,23.776884,166.82,166.77,17.34190922]
[1729570626886,23.776884,166.82,166.77,17.44190922]
[1729570630402,23.776884,166.82,166.79,11.08530277]
[1729570640923,30.7473,166.89,166.81,11.08530277]
[1729570641224,5.9923,166.88,166.83,11.08530277]
[1729570641518,5.9926,166.87,166.83,11.08530277]
[1729570642316,5.994,166.84,166.79,11.08530277]
[1729570642626,20.0,166.88,166.78,17.34183522]
[1729570643628,23.776884,166.83,166.78,17.34183522]
[1729570644125,23.776884,166.83,166.78,6.25653245]
[1729570644424,23.776884,166.83,166.79,11.08530277]
[1729570652234,29.771184,166.83,166.76,6.35775754]
[1729570652412,29.771184,166.83,166.77,11.08530277]
[1729570652709,29.771184,166.83,166.77,11.18530277]
[1729570663619,29.771184,166.83,166.79,11.08530277]
[1729570668949,29.771184,166.83,166.77,11.18530277]
[1729570675652,29.771184,166.83,166.77,0.1]
[1729570689368,29.771184,166.83,166.76,17.34306031]
[1729570689369,20.0,166.83,166.76,6.25775754]
[1729570689568,5.9961,166.78,166.73,0.1]
[1729570689771,23.776884,166.77,166.73,0.1]
[1729570690075,23.776884,166.78,166.73,11.18530277]
[1729570690373,23.776884,166.78,166.74,0.1]
[1729570691170,23.776884,166.78,166.72,0.1]
[1729570691363,29.772784,166.78,166.72,11.18530277]
[1729570691561,5.9963,166.77,166.72,11.08530277]
[1729570691768,23.776884,166.76,166.72,0.1]
[1729570693659,23.776884,166.76,166.7,6.35525178]
[1729570694073,23.776884,166.76,166.7,6.25525178]
[1729570694378,23.776884,166.76,166.7,6.35525178]
[1729570695678,23.776884,166.77,166.71,0.1]
[1729570705176,23.776884,166.77,166.7,6.35525178]
[1729570705791,23.776884,166.77,166.71,0.1]
[1729570705994,23.776884,166.77,166.7,6.35525178]
[1729570707081,23.776884,166.77,166.71,0.1]
[1729570711492,23.776884,166.77,166.71,11.18530277]
[1729570711683,23.776884,166.77,166.7,6.25525178]
[1729570711888,29.774084,166.75,166.67,11.18530277]
[1729570712192,29.774084,166.75,166.64,22.3707]
[1729570712193,5.9982,166.72,166.65,6.35958116]
[1729570712398,23.776884,166.71,166.65,6.25958116]
[1729570712578,23.776884,166.71,166.64,33.45600277]
[1729570713699,23.776884,166.71,166.64,33.55600277]
[1729570713998,23.776884,166.71,166.68,11.18530277]
[1729570716477,23.776884,166.71,166.67,0.1]
[1729570716682,23.776884,166.71,166.67,11.08530277]
[1729570716886,21.2368,166.75,166.65,8.08910479]
[1729570716887,23.776884,166.72,166.65,8.08910479]
[1729570717185,29.774984,166.72,166.65,11.18530277]
[1729570720792,23.776884,166.72,166.66,0.1]
[1729570722511,23.776884,166.72,166.69,11.08530277]
[1729570722810,5.9966,166.76,166.71,11.08530277]
[1729570723012,5.9966,166.76,166.69,11.18530277]
[1729570724311,23.776884,166.75,166.69,11.18530277]
[1729570725106,23.776884,166.75,166.69,0.1]
[1729570725422,23.776884,166.75,166.7,11.08530277]
[1729570730212,29.774184,166.75,166.67,0.1]
[1729570730505,16.1013,166.79,166.67,11.18530277]
[1729570730506,23.776884,166.73,166.67,11.18530277]
[1729570731385,29.774584,166.73,166.66,0.1]
[1729570731592,29.774584,166.73,166.66,11.18530277]
[1729570733113,29.774584,166.73,166.64,28.62938615]
[1729570733114,23.776884,166.74,166.69,0.1]
[1729570733410,23.776884,166.75,166.69,0.1]
[1729570734316,23.776884,166.75,166.7,11.08530277]
[1729570735888,29.773884,166.75,166.7,11.08530277]
[1729570738015,23.776884,166.75,166.7,11.08530277]
[1729570740193,23.776884,166.75,166.72,11.08530277]
[1729570741413,23.776884,166.75,166.71,0.1]
[1729570741617,23.776884,166.75,166.72,11.08530277]
[1729570742222,23.776884,166.75,166.74,11.08530277]
[1729570742516,23.776884,166.75,166.72,0.1]
[1729570742714,23.776884,166.75,166.7,0.1]
[1729570742893,23.776884,166.75,166.71,11.08530277]
[1729570743094,5.9963,166.77,166.69,22.8756]
[1729570743298,29.773484,166.76,166.69,22.8756]
[1729570743498,23.776884,166.76,166.68,0.1]
[1729570743897,23.776884,166.76,166.67,11.18530277]
[1729570744092,5.9971,166.75,166.67,0.1]
[1729570744293,23.776884,166.74,166.67,11.18530277]
[1729570744711,29.774284,166.74,166.67,11.08530277]
[1729570745000,23.776884,166.72,166.66,6.2343895]
[1729570745212,33.1648,166.77,166.63,11.18530277]
[1729570745213,23.776884,166.7,166.63,11.18530277]
[1729570745416,23.776884,166.7,166.63,0.1]
[1729570745724,23.776884,166.68,166.62,47.59920975]
[1729570746601,23.776884,166.68,166.62,47.49920975]
[1729570747104,23.776884,166.68,166.63,0.1]
[1729570747421,23.776884,166.68,166.64,0.1]
[1729570749004,23.776884,166.68,166.63,7.85387701]
[1729570749428,23.776884,166.68,166.64,0.1]
[1729570749722,23.776884,166.68,166.63,7.85387701]
[1729570749927,23.776884,166.68,166.64,0.1]
[1729570751932,23.776884,166.68,166.63,7.85387701]
[1729570752115,23.776884,166.68,166.64,0.1]
[1729570753316,23.776884,166.68,166.63,7.85387701]
[1729570753502,23.776884,166.69,166.63,7.85387701]
[1729570754527,23.776884,166.66,166.62,53.73431397]
[1729570754720,23.776884,166.66,166.62,47.49920975]
[1729570755027,29.777384,166.66,166.62,47.49920975]
[1729570760610,23.776884,166.66,166.62,47.49920975]
[1729570760922,23.776884,166.64,166.62,47.49920975]
[1729570761519,23.776884,166.65,166.62,47.49920975]
[1729570761730,5.9992,166.69,166.62,47.49920975]
[1729570762027,5.9985,166.71,166.64,11.08530277]
[1729570762327,5.9985,166.71,166.64,18.1407606]
[1729570762732,5.998,166.73,166.65,0.1]
[1729570763029,16.3233,166.74,166.65,0.1]
[1729570763334,5.9985,166.71,166.64,11.08530277]
[1729570763918,23.776884,166.7,166.64,11.08530277]
[1729570764935,23.776884,166.7,166.64,11.18530277]
[1729570765116,23.776884,166.7,166.64,11.08530277]
[1729570766937,23.776884,166.7,166.64,11.18530277]
[1729570771033,23.776884,166.7,166.66,11.08530277]
[1729570775546,23.776884,166.7,166.63,28.2617167]
[1729570775728,23.776884,166.7,166.66,11.08530277]
[1729570780150,23.776884,166.68,166.64,11.08530277]
[1729570780949,23.776884,166.69,166.64,11.08530277]
[1729570781350,29.776084,166.69,166.62,58.58451252]
[1729570781550,23.776884,166.66,166.62,47.49920975]
[1729570781847,29.777084,166.66,166.62,47.49920975]
[1729570782230,23.776884,166.64,166.62,47.49920975]
[1729570782732,29.777984,166.64,166.62,47.49920975]
[1729570782929,29.778184,166.63,166.62,47.49920975]
[1729570783129,23.776884,166.61,166.55,11.08530277]
[1729570783343,23.776884,166.61,166.5,22.5129]
[1729570783344,23.776884,166.57,166.5,22.6129]
[1729570783552,23.776884,166.57,166.51,11.08530277]
[1729570783933,23.776884,166.57,166.5,22.6129]
[1729570784135,23.776884,166.55,166.5,33.59820277]
[1729570784542,23.776884,166.56,166.5,33.59820277]
[1729570785468,23.776884,166.56,166.5,22.5129]
[1729570786255,23.776884,166.51,166.47,6.24437698]
[1729570786447,23.776884,166.51,166.44,11.18530277]
[1729570786753,23.776884,166.52,166.44,11.18530277]
[1729570786963,23.776884,166.52,166.45,0.1]
[1729570787141,23.776884,166.53,166.44,0.1]
[1729570787456,6.0053,166.52,166.46,0.1]
[1729570787753,23.776884,166.51,166.45,0.1]
[1729570788131,23.776884,166.51,166.44,11.18530277]
[1729570788346,23.776884,166.47,166.42,0.1]
[1729570789666,23.776884,166.47,166.42,11.18530277]
[1729570790259,23.776884,166.47,166.42,0.1]
[1729570791545,23.776884,166.47,166.44,0.1]
[1729570792749,23.776884,166.47,166.43,0.1]
[1729570792947,23.776884,166.47,166.44,0.1]
[1729570794168,23.776884,166.47,166.43,0.1]
[1729570795659,23.776884,166.48,166.43,0.1]
[1729570796541,23.776884,166.46,166.41,0.1]
[1729570796860,23.776884,166.47,166.42,0.1]
[1729570797041,29.783984,166.47,166.42,0.1]
[1729570797441,29.783984,166.47,166.41,0.1]
[1729570798465,29.783984,166.47,166.42,0.1]
[1729570798947,29.783984,166.47,166.4,17.33887179]
[1729570798948,29.783984,166.47,166.41,0.1]
[1729570799565,23.776884,166.45,166.39,0.1]
[1729570799762,23.776884,166.44,166.39,0.1]
[1729570800268,23.776884,166.44,166.4,0.1]
[1729570800478,23.776884,166.44,166.39,0.1]
[1729570801171,23.776884,166.44,166.4,0.1]
[1729570801866,23.776884,166.44,166.39,0.1]
[1729570802373,29.785084,166.44,166.39,0.1]
[1729570805454,29.785084,166.44,166.38,12.99178018]
[1729570806161,29.785084,166.44,166.39,0.1]
[1729570806480,29.785084,166.44,166.38,12.99178018]
[1729570806682,29.785084,166.44,166.39,0.1]
[1729570807177,29.785084,166.44,166.38,12.99178018]
[1729570807857,29.785084,166.44,166.39,0.1]
[1729570808679,23.776884,166.44,166.39,0.1]
[1729570808861,6.0073,166.47,166.41,0.1]
[1729570809060,6.007,166.48,166.42,0.1]
[1729570809279,15.0143,166.51,166.42,0.1]
[1729570809580,15.115,166.5,166.39,0.1]
[1729570809786,21.3378,166.5,166.39,0.1]
[1729570809981,24.3328,166.5,166.38,12.89178018]
[1729570810171,24.3328,166.5,166.38,6.6429]
[1729570810172,23.776884,166.42,166.38,6.6429]
[1729570810778,23.776884,166.43,166.38,6.7429]
[1729570811368,23.776884,166.43,166.39,0.1]
[1729570812178,23.776884,166.43,166.38,6.7429]
[1729570812489,23.776884,166.43,166.39,11.20116678]
[1729570814081,23.776884,166.43,166.41,11.20116678]
[1729570814287,23.776884,166.43,166.41,11.10116678]
[1729570814760,23.776884,166.43,166.39,0.1]
[1729570814965,29.785084,166.44,166.38,17.84406678]
[1729570815171,29.785084,166.44,166.38,17.74406678]
[1729570815484,29.785084,166.44,166.38,17.84406678]
[1729570815887,29.785084,166.44,166.38,17.74406678]
[1729570816280,29.785084,166.44,166.38,17.84406678]
[1729570824099,23.776884,166.45,166.39,0.1]
[1729570824766,23.776884,166.45,166.38,17.84406678]
[1729570824966,29.784884,166.45,166.38,17.84406678]
[1729570825183,29.784884,166.45,166.39,0.1]
[1729570827300,23.776884,166.42,166.36,6.23822265]
[1729570827583,23.776884,166.42,166.36,11.20116678]
[1729570827790,23.776884,166.42,166.36,11.10116678]
[1729570828378,29.785884,166.42,166.37,0.1]
[1729570828578,29.785884,166.42,166.36,11.20116678]
[1729570830088,23.776884,166.42,166.36,0.1]
[1729570830286,29.785784,166.42,166.36,11.20116678]
[1729570830782,29.785784,166.42,166.37,0.1]
[1729570831171,29.785784,166.42,166.38,11.10116678]
[1729570835389,29.785784,166.42,166.37,0.1]
[1729570835701,29.785784,166.42,166.38,11.10116678]
[1729570836079,23.776884,166.42,166.38,11.10116678]
[1729570837085,23.776884,166.42,166.34,0.1]
[1729570837290,23.776884,166.4,166.35,11.10116678]
[1729570839078,29.786484,166.4,166.35,11.10116678]
[1729570839398,29.786484,166.4,166.34,0.1]
[1729570839600,29.786484,166.4,166.34,11.20116678]
[1729570839784,23.776884,166.4,166.34,0.1]
[1729570839989,30.0,166.41,166.34,0.1]
[1729570839990,23.776884,166.38,166.34,0.1]
[1729570840195,23.776884,166.38,166.32,11.80710838]
[1729570840384,23.776884,166.36,166.32,11.80710838]
[1729570841398,23.776884,166.36,166.32,11.70710838]
[1729570843696,23.776884,166.36,166.32,0.6059416]
[1729570844098,29.787984,166.36,166.32,0.6059416]
[1729570845091,23.776884,166.36,166.32,0.6059416]
[1729570845302,23.776884,166.33,166.32,0.6059416]
[1729570846486,29.788984,166.33,166.32,0.6059416]
[1729570847211,59.788984,166.33,166.32,0.6059416]
[1729570849811,79.788984,166.33,166.32,0.6059416]
[1729570850381,79.788984,166.33,166.21,6.34534173]
[1729570850382,20.1,166.32,166.21,6.34534173]
[1729570850582,20.1,166.32,166.2,6.0419]
[1729570850583,6.0143,166.27,166.2,6.1419]
[1729570850807,6.0143,166.27,166.21,11.20116678]
[1729570851204,6.0143,166.27,166.21,11.10116678]
[1729570851709,6.0143,166.27,166.21,11.20116678]
[1729570851883,6.0143,166.27,166.23,11.10116678]
[1729570852087,6.0139,166.28,166.23,11.10116678]
[1729570852285,30.0,166.31,166.25,11.10116678]
[1729570852590,16.6619,166.34,166.24,0.1]
[1729570852791,16.6619,166.34,166.25,11.10116678]
[1729570853810,23.776884,166.33,166.25,11.10116678]
[1729570854385,23.776884,166.3,166.25,11.10116678]
[1729570854589,23.776884,166.27,166.23,11.10116678]
[1729570856691,23.776884,166.27,166.21,0.1]
[1729570857112,23.776884,166.27,166.23,11.10116678]
[1729570861423,23.776884,166.27,166.23,11.20116678]
[1729570861595,20.0,166.33,166.25,11.10116678]
[1729570861913,22.6739,166.34,166.27,11.20116678]
[1729570862105,16.6619,166.34,166.27,11.10116678]
[1729570862306,16.6619,166.34,166.25,15.9759]
[1729570862612,6.0121,166.33,166.25,26.97706678]
[1729570862805,0.1,166.33,166.22,0.1]
[1729570863005,6.0142,166.28,166.22,11.10116678]
[1729570863408,23.776884,166.27,166.21,15.6631]
[1729570863720,23.776884,166.27,166.22,11.10116678]
[1729570863919,23.776884,166.28,166.22,11.20116678]
[1729570864116,23.776884,166.28,166.24,11.10116678]
[1729570864296,23.776884,166.28,166.26,11.10116678]
[1729570864500,23.776884,166.28,166.26,11.20116678]
[1729570867415,23.776884,166.28,166.27,0.1]
[1729570868217,23.776884,166.28,166.26,17.16926678]
[1729570868218,6.0112,166.36,166.29,0.1]
[1729570868420,16.1265,166.38,166.32,11.10116678]
[1729570868421,6.0107,166.37,166.32,11.10116678]
[1729570876712,6.0107,166.37,166.32,11.20116678]
[1729570877115,6.0107,166.37,166.32,11.10116678]
[1729570878525,6.0107,166.37,166.32,11.20116678]
[1729570878728,6.0107,166.37,166.32,11.10116678]
[1729570879336,6.0107,166.37,166.32,11.20116678]
[1729570879729,6.0107,166.37,166.31,0.1]
[1729570880036,6.0107,166.37,166.33,11.10116678]
[1729570880540,6.0099,166.4,166.35,11.10116678]
[1729570880831,6.0093,166.41,166.35,11.20116678]
[1729570881038,6.0093,166.41,166.37,11.10116678]
[1729570881332,30.0,166.38,166.37,11.10116678]
[1729570882218,16.0935,166.46,166.39,0.1]
[1729570882413,30.0,166.4,166.39,0.1]
[1729570882615,22.1011,166.46,166.39,0.1]
[1729570882616,22.1011,166.46,166.39,11.20116678]
[1729570882840,6.0079,166.45,166.39,11.20116678]
[1729570883339,0.1,166.44,166.33,0.1]
[1729570883635,6.0099,166.4,166.33,0.1]
[1729570884213,6.0099,166.4,166.34,0.1]
[1729570885623,16.0935,166.46,166.37,11.20116678]
[1729570885825,16.0935,166.46,166.39,11.10116678]
[1729570886026,6.0085,166.43,166.39,11.10116678]
[1729570888440,6.008,166.45,166.39,11.10116678]
[1729570888619,6.0083,166.44,166.39,11.10116678]
[1729570891223,22.1012,166.46,166.39,11.20116678]
[1729570891436,16.0935,166.46,166.39,11.20116678]
[1729570891641,6.0078,166.45,166.39,11.20116678]
[1729570894051,6.0078,166.45,166.39,11.10116678]
[1729570895450,6.0078,166.45,166.39,11.20116678]
[1729570895625,6.0078,166.45,166.39,11.10116678]
[1729570895948,6.0078,166.45,166.38,0.1]
[1729570896245,6.0078,166.45,166.4,11.10116678]
[1729570901123,20.0,166.48,166.4,11.20116678]
[1729570901320,6.0066,166.49,166.44,11.10116678]
[1729570901526,30.0,166.45,166.44,11.10116678]
[1729570902049,6.0066,166.49,166.44,11.10116678]
[1729570902239,6.0056,166.51,166.46,11.10116678]
[1729570906334,6.0053,166.52,166.48,11.10116678]
[1729570907132,21.0121,166.54,166.48,11.10116678]
[1729570907330,6.0049,166.53,166.48,11.10116678]
[1729570910157,193.1,166.56,166.5,11.10116678]
[1729570910343,22.4972,166.58,166.54,11.10116678]
[1729570910538,30.0,166.55,166.54,11.10116678]
[1729570911457,6.0028,166.59,166.54,11.10116678]
[1729570911645,6.0028,166.59,166.56,11.10116678]
[1729570913141,15.7522,166.63,166.56,11.10116678]
[1729570914334,6.0033,166.58,166.52,0.1]
[1729570914539,38.11,166.62,166.49,0.1]
[1729570914738,18.01,166.61,166.49,11.20116678]
[1729570914941,20.0,166.55,166.47,6.2923]
[1729570915134,20.0,166.55,166.47,6.3923]
[1729570915344,6.0051,166.53,166.47,6.3923]
[1729570917355,6.0051,166.53,166.47,6.2923]
[1729570917540,6.0051,166.53,166.47,6.3923]
[1729570921555,6.0051,166.53,166.51,10.0324744]
[1729570922259,36.0052,166.52,166.51,10.0324744]
[1729570924770,30.0,166.52,166.51,10.0324744]
[1729570929073,6.0049,166.53,166.51,10.0324744]
[1729570930270,6.0045,166.55,166.51,10.0324744]
[1729570932870,20.0,166.58,166.51,10.0324744]
[1729570933068,20.1,166.58,166.51,10.0324744]
[1729570933371,6.0047,166.54,166.51,10.0324744]
[1729570938379,21.04276135,166.59,166.51,21.13364118]
[1729570938576,6.0038,166.57,166.51,21.13364118]
[1729570939869,6.0039,166.56,166.51,21.13364118]
[1729570940375,6.0031,166.58,166.53,11.10116678]
[1729570940584,6.0026,166.6,166.55,11.10116678]
[1729570941385,1.04247359,166.65,166.57,11.10116678]
[1729570941562,16.0067,166.68,166.58,0.1]
[1729570941886,6.0013,166.63,166.58,0.1]
[1729570945185,0.1,166.67,166.58,0.1]
[1729570945368,6.0016,166.63,166.58,0.1]
[1729570945567,6.0009,166.65,166.58,0.1]
[1729570945886,6.0013,166.63,166.58,0.1]
[1729570946079,6.0013,166.63,166.58,11.20116678]
[1729570948884,6.0013,166.63,166.58,0.1]
[1729570949091,6.0013,166.63,166.58,11.20116678]
[1729570952690,6.0013,166.63,166.58,11.10116678]
[1729570953294,6.0007,166.65,166.6,11.20116678]
[1729570953495,76.17653645,166.7,166.56,15.4199]
[1729570953496,33.0374,166.7,166.62,11.10116678]
[1729570953674,6.0002,166.66,166.62,11.10116678]
[1729570956493,6.0006,166.65,166.62,11.10116678]
[1729570956686,6.0006,166.65,166.61,0.1]
[1729570957572,6.0002,166.67,166.62,0.1]
[1729570958685,6.0002,166.67,166.62,6.5773]
[1729570960975,6.0002,166.66,166.62,6.5773]
[1729570961787,6.0002,166.66,166.62,17.67846678]
[1729570962498,14.9974,166.7,166.6,0.1]
[1729570962701,6.0006,166.65,166.6,0.1]
[1729570963010,6.0006,166.65,166.6,11.20116678]
[1729570965000,14.9974,166.7,166.6,11.20116678]
[1729570965001,20.0,166.69,166.6,11.10116678]
[1729570965206,6.0015,166.63,166.58,11.20116678]
[1729570965503,6.0015,166.63,166.59,0.1]
[1729570966006,6.0015,166.63,166.58,11.20116678]
[1729570966208,6.0015,166.63,166.58,11.10116678]
[1729570966502,6.0015,166.63,166.58,11.20116678]
[1729570966878,6.0015,166.63,166.59,0.1]
[1729570970701,14.9988,166.68,166.6,11.20116678]
[1729570970702,20.0,166.67,166.6,11.20116678]
[1729570970895,6.0009,166.65,166.6,11.20116678]
[1729570972000,6.0009,166.64,166.6,11.20116678]
[1729570972205,6.0014,166.63,166.58,11.20116678]
[1729570972803,6.0021,166.61,166.57,6.5603]
[1729570973214,6.0021,166.61,166.57,6.6603]
[1729570973398,6.0021,166.61,166.57,6.5603]
[1729570975916,6.0021,166.61,166.57,6.6603]
[1729570979010,16.5407,166.66,166.59,0.1]
[1729570979204,6.0009,166.65,166.6,11.20116678]
[1729570979515,6.0009,166.65,166.61,0.1]
[1729570982408,5.9991,166.69,166.64,11.20116678]
[1729570983408,5.9996,166.68,166.64,11.20116678]
[1729570987606,5.9996,166.68,166.65,0.1]
[1729570989116,5.9991,166.7,166.65,0.1]
[1729570989323,5.9991,166.7,166.65,11.20116678]
[1729570990817,5.9991,166.7,166.66,0.1]
[1729570991021,5.9991,166.7,166.65,11.20116678]
[1729570991328,5.9997,166.68,166.64,0.1]
[1729570997822,5.9997,166.68,166.64,11.20116678]
[1729571006612,5.9997,166.68,166.64,0.1]
[1729571011135,38.14,166.69,166.58,6.24841401]
[1729571011351,6.0017,166.62,166.57,15.0522]
[1729571011525,6.0013,166.64,166.59,0.1]
[1729571012826,6.0002,166.66,166.61,0.1]
[1729571013630,5.9999,166.67,166.62,0.1]
[1729571014030,5.9999,166.67,166.63,0.1]
[1729571016924,5.9999,166.67,166.63,11.20116678]
[1729571023154,5.9995,166.68,166.63,11.20116678]
[1729571024853,5.9999,166.67,166.63,11.20116678]
[1729571025859,20.0,166.7,166.64,0.1]
[1729571026152,5.9991,166.69,166.65,0.1]
[1729571029558,5.9991,166.69,166.64,0.1]
[1729571029741,15.45,166.71,166.63,11.20116678]
[1729571029946,15.45,166.71,166.6,6.0533]
[1729571029947,6.0006,166.65,166.61,0.1]
[1729571031450,6.0006,166.65,166.6,6.1533]
[1729571031656,6.0006,166.65,166.61,0.1]
[1729571040063,5.9997,166.68,166.61,0.1]
[1729571040259,6.0001,166.67,166.62,0.1]
[1729571041056,20.0,166.7,166.62,0.1]
[1729571041254,6.0002,166.66,166.62,0.1]
[1729571043769,15.45,166.71,166.6,6.0533]
[1729571043770,21.4487,166.71,166.66,0.1]
[1729571043972,15.6004416,166.73,166.66,0.1]
[1729571043973,30.0,166.67,166.66,0.1]
[1729571044874,5.9988,166.7,166.66,0.1]
[1729571045675,6.6037416,166.73,166.67,11.20116678]
[1729571045860,0.6059416,166.73,166.69,0.1]
[1729571046070,30.0,166.7,166.69,0.1]
[1729571046566,6.6036416,166.73,166.69,0.1]
[1729571046770,0.6059416,166.73,166.71,0.1]
[1729571046972,30.0,166.72,166.71,0.1]
[1729571048269,0.6059416,166.73,166.71,0.1]
[1729571051072,0.6059416,166.73,166.69,11.10116678]
[1729571051455,0.6059416,166.73,166.72,0.1]
[1729571057062,0.6059416,166.73,166.72,6.4069]
[1729571057271,0.6059416,166.73,166.72,26.4069]
[1729571057779,22.0971,166.83,166.73,20.0]
[1729571057974,22.0971,166.83,166.78,11.10116678]
[1729571058162,30.0,166.79,166.78,11.10116678]
[1729571058358,22.0971,166.83,166.78,11.10116678]
[1729571058557,22.0971,166.83,166.78,11.20116678]
[1729571059581,5.9945,166.82,166.78,11.20116678]
[1729571061187,20.0,166.86,166.78,11.20116678]
[1729571061364,16.1372,166.87,166.8,11.10116678]
[1729571061564,5.9935,166.85,166.81,0.1]
[1729571063484,5.9927,166.87,166.82,11.20116678]
[1729571063972,20.6059416,166.9,166.82,11.20116678]
[1729571064282,5.993,166.86,166.82,11.20116678]
[1729571064661,0.6059416,166.9,166.82,11.20116678]
[1729571064980,5.9919,166.89,166.85,0.1]
[1729571065279,0.6059416,166.9,166.86,11.20116678]